bitfinex-derivatives/quotes_ETHF0:USTF0_20251118
["timestamp","ask_amount","ask_price","bid_price","bid_amount"]
[1763434298566,0.00496006,3022.0,3020.9,1.78800508]
[1763434299462,0.00496006,3022.0,3021.3,1.78800508]
[1763434299770,0.00496006,3022.0,3021.0,0.247]
[1763434299968,0.00496006,3022.0,3020.5,0.3089]
[1763434300172,0.00496006,3022.0,3020.6,0.327]
[1763434300774,0.00496006,3022.0,3020.9,1.78800508]
[1763434302171,0.00496006,3022.0,3020.5,7.26200508]
[1763434302172,0.84127212,3022.0,3020.5,7.26200508]
[1763434302371,2.02276939,3022.0,3020.5,6.39100508]
[1763434302573,2.02276939,3022.0,3020.5,1.78800508]
[1763434302870,2.01780933,3021.9,3020.1,3.78900508]
[1763434303077,0.83771066,3021.8,3020.5,1.78800508]
[1763434303266,0.4379,3021.6,3020.5,1.78800508]
[1763434303466,0.83771066,3021.5,3020.5,1.78800508]
[1763434303969,0.83771066,3021.5,3020.1,1.78800508]
[1763434304273,1.61939727,3021.6,3020.1,3.12500508]
[1763434304470,0.83771066,3021.5,3020.1,1.78800508]
[1763434304672,0.83771066,3021.5,3020.1,3.12500508]
[1763434304872,2.01920793,3021.5,3020.1,3.12500508]
[1763434305271,0.4379,3019.8,3019.2,0.09064158]
[1763434305475,0.44286006,3019.8,3019.2,0.09064158]
[1763434305664,0.44286006,3019.8,3019.2,1.87864666]
[1763434306275,0.44526983,3019.8,3019.2,1.88249035]
[1763434306577,0.00736983,3019.8,3019.2,2.14275933]
[1763434306778,0.00736983,3019.8,3019.2,0.35475425]
[1763434306964,0.44526983,3019.8,3019.2,0.35475425]
[1763434307168,0.84004992,3019.7,3019.2,0.35475425]
[1763434307462,0.44526983,3019.8,3019.2,0.35475425]
[1763434307665,0.4379,3019.2,3017.4,0.2347]
[1763434307861,0.4379,3019.2,3017.6,1.78800508]
[1763434307862,0.4379,3018.6,3017.6,1.78800508]
[1763434308464,0.4379,3018.6,3018.0,1.78800508]
[1763434308668,1.61939727,3019.2,3018.0,1.79048054]
[1763434308869,0.84125872,3019.1,3018.0,0.00247546]
[1763434309175,0.84125872,3019.0,3018.0,0.00247546]
[1763434309375,0.4379,3018.4,3018.0,0.00247546]
[1763434309681,0.84125872,3018.3,3018.0,0.00247546]
[1763434310577,0.84125872,3018.3,3016.4,1.78800508]
[1763434310765,0.84125872,3018.3,3014.9,0.2347]
[1763434310766,0.4428687,3017.7,3016.3,2.81100508]
[1763434311170,1.78800508,3017.3,3016.3,0.27184185]
[1763434311473,1.78800508,3017.3,3014.9,0.2347]
[1763434311474,1.78800508,3016.4,3013.5,0.3114]
[1763434311770,0.4379,3014.9,3013.7,0.30493869]
[1763434311971,0.4379,3014.9,3013.7,0.03581047]
[1763434312370,0.4379,3014.9,3013.7,0.30717345]
[1763434312773,0.4379,3014.9,3013.9,1.78800508]
[1763434313677,0.4379,3014.9,3013.7,0.30717345]
[1763434314383,0.4379,3014.9,3013.8,1.78800508]
[1763434316178,0.0049687,3015.4,3014.6,1.78800508]
[1763434316377,0.4379,3016.3,3015.1,1.78800508]
[1763434316582,0.4379,3017.0,3015.5,1.78800508]
[1763434316886,0.4379,3017.0,3015.2,2.09]
[1763434317067,0.4251,3016.3,3015.2,2.09]
[1763434317472,0.0049687,3016.1,3015.4,0.0049687]
[1763434318381,0.0049687,3016.1,3015.5,1.78800508]
[1763434318783,0.4379,3017.0,3015.9,1.78800508]
[1763434318982,0.4379,3017.0,3015.9,1.79068363]
[1763434319685,0.0049687,3016.5,3015.9,1.79068363]
[1763434319886,0.0049687,3016.5,3016.1,0.01006794]
[1763434320281,0.4251,3016.3,3016.1,0.01006794]
[1763434320482,0.4251,3016.3,3015.4,0.0049687]
[1763434321089,0.4251,3016.3,3015.4,1.79297378]
[1763434321387,0.4251,3016.3,3015.4,1.79665869]
[1763434321789,0.4251,3015.6,3015.4,0.00865361]
[1763434322289,0.4251,3015.6,3014.5,1.78800508]
[1763434322290,6.0,3015.5,3014.1,1.78800508]
[1763434322483,0.4251,3015.6,3014.1,1.78800508]
[1763434322988,0.4251,3015.6,3014.0,1.696]
[1763434323185,0.0049687,3015.1,3014.5,0.0049687]
[1763434323386,0.4251,3016.3,3015.0,2.30678327]
[1763434323890,0.4251,3016.3,3015.1,2.206]
[1763434324092,0.4251,3016.3,3014.9,0.3202]
[1763434324293,0.0049687,3015.9,3014.9,8.3272]
[1763434324590,0.0049687,3015.9,3014.5,0.0049687]
[1763434326001,0.4251,3015.2,3014.5,0.0049687]
[1763434326185,0.0049687,3015.9,3014.5,0.0049687]
[1763434326795,0.0049687,3015.9,3014.8,2.30678327]
[1763434326998,0.00262751,3016.4,3015.4,2.30678327]
[1763434327199,0.4379,3017.6,3015.4,2.30678327]
[1763434327404,0.4379,3017.6,3015.5,3.401]
[1763434327998,0.0049687,3016.6,3015.5,3.401]
[1763434328198,0.00888332,3016.6,3015.4,2.30678327]
[1763434328394,0.00888332,3016.6,3015.2,0.3202]
[1763434328705,0.00888332,3016.6,3015.4,1.29]
[1763434329399,0.00888332,3016.6,3015.2,0.3202]
[1763434329599,0.00888332,3016.6,3014.9,7.575]
[1763434330797,0.00888332,3016.6,3014.3,2.30678327]
[1763434331003,0.00888332,3016.6,3014.6,0.726]
[1763434331595,0.00888332,3016.6,3013.5,14.25278327]
[1763434331800,0.00888332,3016.6,3014.1,4.01378327]
[1763434332098,0.844995,3016.6,3014.1,4.01378327]
[1763434332305,0.83611168,3016.5,3014.1,4.01378327]
[1763434332500,0.83611168,3016.4,3014.7,2.30678327]
[1763434332697,0.00888332,3016.6,3015.3,2.30678327]
[1763434333105,0.00888332,3016.6,3015.4,2.52]
[1763434333310,0.00888332,3016.6,3015.4,8.188]
[1763434334003,0.00888332,3016.6,3015.3,2.30678327]
[1763434334196,0.00888332,3016.6,3015.4,20.318]
[1763434334603,0.00888332,3016.6,3015.5,20.318]
[1763434335009,0.00888332,3016.6,3016.0,0.2818]
[1763434335312,0.84149561,3017.5,3016.0,0.2818]
[1763434335502,1.18149727,3018.2,3016.0,0.2818]
[1763434335905,1.18149727,3018.2,3016.1,4.991]
[1763434335906,0.84302978,3017.5,3016.1,4.991]
[1763434336106,1.18149727,3018.0,3016.1,4.991]
[1763434336400,0.0049687,3017.2,3016.5,0.0049687]
[1763434336605,0.0049687,3017.2,3016.5,0.00832195]
[1763434338011,0.84538572,3017.1,3016.5,0.00832195]
[1763434338214,0.84538572,3017.0,3016.5,0.00832195]
[1763434338396,0.84538572,3016.9,3016.5,0.00832195]
[1763434338600,0.84538572,3016.8,3016.5,0.00832195]
[1763434338802,0.0049687,3017.2,3016.5,0.00832195]
[1763434339002,0.84591917,3017.1,3016.5,0.00832195]
[1763434339213,0.84591917,3017.0,3016.5,0.00832195]
[1763434339510,0.84591917,3016.9,3016.5,0.00832195]
[1763434339811,0.84591917,3016.8,3016.5,0.00832195]
[1763434340011,0.84591917,3016.7,3016.5,0.00832195]
[1763434340209,1.18646597,3017.2,3016.5,0.00832195]
[1763434340512,0.84709903,3017.1,3016.5,0.00832195]
[1763434340713,0.84709903,3017.0,3016.5,0.00832195]
[1763434340903,0.84709903,3016.9,3016.5,0.00832195]
[1763434341207,0.0049687,3017.2,3016.5,0.00832195]
[1763434341400,0.84878462,3017.1,3016.5,0.00832195]
[1763434341603,0.3578,3016.8,3016.5,0.00832195]
[1763434341803,0.84878462,3016.7,3015.3,2.30678327]
[1763434342008,0.84878462,3016.6,3015.1,11.945]
[1763434342210,0.84878462,3016.5,3015.3,1.901]
[1763434342415,1.18149727,3016.7,3015.3,1.901]
[1763434342416,0.84878462,3016.4,3015.3,1.901]
[1763434342610,0.84878462,3016.3,3015.4,2.30678327]
[1763434342812,0.3578,3014.2,3012.5,7.43431101]
[1763434343113,0.3578,3014.2,3010.2,1.79741989]
[1763434343114,2.37337475,3013.4,3010.2,1.79741989]
[1763434343409,1.77441794,3012.9,3011.0,0.383]
[1763434343715,12.712,3014.1,3011.0,0.383]
[1763434343716,0.00497768,3012.1,3011.7,0.0966]
[1763434344015,0.00497768,3012.1,3011.1,0.07439832]
[1763434344016,0.84068084,3012.0,3011.1,5.88981144]
[1763434344220,5.91467278,3011.4,3011.3,0.53862]
[1763434344412,6.75535362,3011.4,3011.3,3.07295094]
[1763434344615,6.75535362,3011.4,3011.3,9.05936238]
[1763434344912,0.84068084,3011.4,3011.3,3.07295094]
[1763434345117,6.84068084,3011.4,3011.3,2.68995094]
[1763434345412,9.78409484,3011.4,3011.3,2.68995094]
[1763434345810,6.84068084,3011.4,3011.3,2.68995094]
[1763434346010,9.78409484,3011.4,3011.3,2.68995094]
[1763434346211,9.78409484,3011.4,3011.1,0.00394317]
[1763434346406,0.84068084,3011.3,3011.2,0.07439832]
[1763434346914,3.18883238,3011.3,3011.2,2.68995094]
[1763434347208,0.84068084,3011.3,3010.0,0.40023952]
[1763434347411,1.75776178,3010.5,3010.3,0.0966]
[1763434347608,0.84068084,3010.4,3010.1,0.07439832]
[1763434347806,0.84068084,3010.3,3010.2,0.07439832]
[1763434348011,0.84068084,3010.3,3010.0,0.01723952]
[1763434348314,2.59456237,3010.2,3010.0,0.01958129]
[1763434348510,0.84068084,3010.1,3010.0,0.01958129]
[1763434348814,0.84068084,3010.1,3010.0,2.70953223]
[1763434349001,0.84068084,3010.1,3010.0,0.01958129]
[1763434349201,0.84068084,3010.1,3010.0,0.01658129]
[1763434349615,1.17197431,3010.5,3010.0,12.72639441]
[1763434349910,2.34754425,3012.5,3011.0,1.33647]
[1763434350414,2.34754425,3012.4,3011.2,0.63523]
[1763434350601,2.34754425,3012.5,3011.0,3.48775094]
[1763434350800,0.00497768,3011.8,3011.0,3.48775094]
[1763434351005,0.00497768,3011.8,3011.0,0.7978]
[1763434351208,0.00497768,3011.8,3011.0,1.33645]
[1763434351413,0.00497768,3011.8,3011.0,0.7978]
[1763434351609,0.00497768,3011.8,3011.0,4.02640094]
[1763434351809,0.00497768,3011.8,3011.1,2.35797365]
[1763434352002,0.00497768,3011.8,3011.6,0.53855]
[1763434352413,2.34754425,3013.3,3011.4,0.00497768]
[1763434352414,2.34754425,3013.5,3011.8,0.53853]
[1763434352716,2.34754425,3014.0,3012.6,0.53837]
[1763434352916,6.76849951,3014.9,3012.0,0.7978]
[1763434352917,2.34754425,3014.1,3012.5,0.53839]
[1763434353117,2.34754425,3013.9,3012.2,0.0966]
[1763434353409,0.00497768,3013.4,3012.7,0.00497768]
[1763434353613,2.34754425,3013.2,3012.7,0.007751]
[1763434353809,0.00851128,3013.4,3012.7,2.69770194]
[1763434355820,0.00851128,3013.4,3013.0,0.53831]
[1763434356006,0.00851128,3013.4,3013.0,0.7978]
[1763434356210,0.00851128,3013.4,3013.0,3.48775094]
[1763434356405,0.00851128,3013.4,3013.0,2.68995094]
[1763434357013,0.00851128,3013.4,3012.7,0.007751]
[1763434357624,0.00851128,3013.4,3012.7,2.69770194]
[1763434357812,0.00851128,3013.4,3012.7,0.007751]
[1763434358619,0.00851128,3013.4,3012.7,2.69770194]
[1763434359516,2.32719818,3014.2,3013.9,0.53815]
[1763434359721,4.13193162,3015.2,3014.1,0.7978]
[1763434360022,4.13193162,3016.9,3014.5,0.53804]
[1763434360321,0.53809,3014.3,3014.1,3.48775094]
[1763434360522,0.54176994,3014.3,3014.1,3.48775094]
[1763434360921,0.00367994,3014.3,3014.1,3.48775094]
[1763434361222,0.54176994,3014.3,3014.1,2.68995094]
[1763434362516,0.53813,3014.0,3013.9,0.00497768]
[1763434362711,0.00367994,3014.3,3014.1,0.7978]
[1763434363227,0.00367994,3014.3,3014.2,0.0966]
[1763434363426,0.00367994,3014.3,3014.2,2.78655094]
[1763434363623,0.00367994,3014.3,3014.2,2.68995094]
[1763434363926,0.54176994,3014.3,3014.1,0.7978]
[1763434364123,0.54176994,3014.3,3014.2,0.0966]
[1763434364526,1.43114318,3014.3,3014.1,0.7978]
[1763434364826,0.00367994,3014.3,3014.1,0.7978]
[1763434365122,0.00367994,3014.3,3013.9,0.00497768]
[1763434365123,0.53813,3014.0,3013.9,0.00497768]
[1763434365322,0.89312958,3014.3,3013.9,0.00497768]
[1763434365523,1.43120958,3014.3,3014.1,0.7978]
[1763434365826,0.88944964,3014.2,3014.1,3.58435094]
[1763434366324,0.88944964,3014.2,3014.1,0.7978]
[1763434366524,0.53811,3014.1,3013.9,0.00497768]
[1763434366830,0.88944964,3014.0,3013.9,0.00497768]
[1763434367226,0.00497768,3014.5,3014.1,0.7978]
[1763434367416,18.18315794,3017.4,3014.6,2.68995094]
[1763434367417,4.13193162,3016.9,3014.6,2.68995094]
[1763434367619,11.959,3017.4,3014.5,2.313]
[1763434367818,0.53781,3015.9,3014.5,2.313]
[1763434368020,0.53781,3015.9,3014.1,15.44675094]
[1763434368021,0.53781,3015.9,3015.6,0.0966]
[1763434368221,0.53783,3015.7,3015.0,0.7978]
[1763434368422,0.00497768,3015.7,3015.5,0.0966]
[1763434368628,0.54280768,3015.7,3015.5,0.0966]
[1763434368924,0.00497768,3015.7,3015.6,0.0966]
[1763434369126,0.00365,3015.9,3015.6,2.78655094]
[1763434369426,0.53767,3016.6,3015.9,0.7978]
[1763434369623,0.53762,3016.9,3015.9,3.48775094]
[1763434369827,0.53764,3016.8,3016.4,0.0966]
[1763434370026,0.53767,3016.6,3016.4,0.0966]
[1763434370217,0.54089746,3016.6,3016.4,2.78655094]
[1763434370616,0.54089746,3016.6,3016.4,2.68995094]
[1763434371220,0.00322746,3016.6,3015.9,0.7978]
[1763434371422,0.00322746,3016.6,3015.9,0.8944]
[1763434371618,0.00322746,3016.6,3015.9,0.7978]
[1763434371826,0.00322746,3016.6,3016.2,0.0966]
[1763434372023,0.53771,3016.4,3016.2,0.0966]
[1763434372218,0.53774,3016.2,3016.0,0.00497768]
[1763434372635,0.53786,3015.6,3015.0,0.80122848]
[1763434372928,0.53786,3015.6,3015.5,0.0966]
[1763434373230,1.75769805,3016.5,3015.5,0.0966]
[1763434373429,1.76092551,3016.6,3015.9,0.7978]
[1763434373632,0.00322746,3016.6,3015.9,0.80277768]
[1763434374026,0.53769,3016.5,3016.0,0.0966]
[1763434374225,0.53771,3016.4,3016.0,0.0966]
[1763434374529,0.00322746,3016.6,3015.9,0.06492768]
[1763434374730,0.54090746,3016.6,3015.9,0.06492768]
[1763434375032,0.53774,3016.2,3015.9,0.06492768]
[1763434375332,0.53778,3016.0,3015.9,0.7978]
[1763434375931,0.00322746,3016.6,3015.9,0.7978]
[1763434376131,0.53776,3016.2,3015.9,0.7978]
[1763434376337,0.53776,3016.2,3015.9,0.80277768]
[1763434376533,0.53776,3016.1,3015.9,0.80277768]
[1763434377231,0.00322746,3016.6,3015.9,0.80277768]
[1763434377436,0.53772,3016.4,3015.9,0.80277768]
[1763434377632,0.00322746,3016.6,3015.9,0.80277768]
[1763434378435,0.5377,3016.5,3015.9,0.80277768]
[1763434378635,0.00322746,3016.6,3015.9,0.80277768]
[1763434379033,0.53769,3016.5,3015.9,0.80277768]
[1763434379435,0.85365061,3016.4,3015.9,0.80277768]
[1763434379833,1.39136061,3016.4,3015.9,0.80277768]
[1763434380128,0.85365061,3016.3,3015.9,0.80277768]
[1763434380332,1.39138061,3016.3,3015.9,0.80277768]
[1763434380527,0.53777,3016.1,3015.9,0.80277768]
[1763434380740,0.85365061,3016.0,3015.9,0.80277768]
[1763434381140,0.85365061,3016.1,3015.9,0.80277768]
[1763434381439,0.00322746,3016.6,3015.9,0.80277768]
[1763434381636,0.54089746,3016.6,3015.9,0.80277768]
[1763434381825,0.00322746,3016.6,3015.9,0.80277768]
[1763434382634,1.1759451,3016.4,3015.9,0.80277768]
[1763434382838,0.00322746,3016.6,3015.9,0.80277768]
[1763434383033,0.53774,3016.3,3015.9,0.80277768]
[1763434384040,0.53769,3016.5,3015.9,0.80277768]
[1763434384836,0.00322746,3016.6,3015.9,0.80277768]
[1763434386332,0.53778,3016.0,3015.9,0.80277768]
[1763434386533,1.1759451,3016.4,3015.9,0.80277768]
[1763434386736,0.53778,3016.0,3015.9,0.80277768]
[1763434387448,1.1759451,3016.3,3015.9,0.80277768]
[1763434387744,0.53778,3016.0,3015.9,0.80277768]
[1763434387943,0.53776,3016.1,3015.9,0.80277768]
[1763434388240,0.53778,3016.0,3015.9,0.80277768]
[1763434388635,1.1759451,3016.2,3015.9,0.80277768]
[1763434389345,4.51e-05,3016.4,3015.9,0.80277768]
[1763434389539,0.00322746,3016.6,3015.9,0.80277768]
[1763434390243,1.97212711,3016.6,3015.9,0.80277768]
[1763434390743,0.53776,3016.1,3015.9,0.80277768]
[1763434391138,0.53778,3016.0,3015.9,0.80277768]
[1763434391345,0.53776,3016.1,3015.9,0.80277768]
[1763434391739,1.75769805,3016.4,3015.9,0.80277768]
[1763434391940,1.75769805,3016.5,3015.9,0.80277768]
[1763434392141,0.53772,3016.3,3015.9,0.80277768]
[1763434392347,1.75769805,3016.5,3015.9,0.80277768]
[1763434392650,0.00322746,3016.6,3015.9,0.80277768]
[1763434393247,0.54089746,3016.6,3015.9,0.80277768]
[1763434393549,0.8191062,3016.5,3015.9,0.80277768]
[1763434393755,0.53776,3016.1,3015.9,0.80277768]
[1763434393952,1.3568862,3016.0,3015.9,0.80277768]
[1763434394452,0.8191062,3016.0,3015.0,0.80122848]
[1763434394655,0.53785,3015.6,3015.0,0.80122848]
[1763434394850,0.8191062,3015.5,3015.0,0.80122848]
[1763434395160,1.75769805,3016.2,3015.6,0.9227]
[1763434395354,1.75769805,3016.2,3015.6,0.92767768]
[1763434395554,2.29543805,3016.2,3015.6,0.92767768]
[1763434395849,1.75769805,3016.2,3015.6,0.92767768]
[1763434396055,1.75769805,3016.3,3015.6,0.92767768]
[1763434396445,2.29543805,3016.2,3015.6,0.92767768]
[1763434396648,1.75769805,3016.2,3015.6,0.92767768]
[1763434397054,0.00322746,3016.6,3015.6,0.92767768]
[1763434397055,1.75769805,3016.3,3015.6,0.92767768]
[1763434397256,1.76092551,3016.6,3015.6,0.92767768]
[1763434397468,1.75769805,3016.5,3016.3,0.9227]
[1763434398161,0.00322746,3016.6,3016.3,6.9227]
[1763434398162,2.746e-05,3016.6,3016.3,6.9227]
[1763434398460,2.34360219,3017.6,3016.3,12.6261]
[1763434398663,2.34360219,3017.9,3016.3,9.62157649]
[1763434398970,2.34360219,3018.0,3016.3,1.23257649]
[1763434399163,2.34360219,3018.2,3016.4,2.65]
[1763434399469,0.53752,3017.5,3016.3,6.07957649]
[1763434400170,0.00497768,3017.6,3016.3,6.07957649]
[1763434400865,0.54246768,3017.6,3016.3,6.07957649]
[1763434401265,0.54247768,3017.6,3016.3,1.23257649]
[1763434401571,0.00497768,3017.6,3016.4,8.556]
[1763434402169,0.00497768,3017.6,3016.3,1.23257649]
[1763434402360,0.53759,3017.1,3016.3,0.9227]
[1763434402555,0.00497768,3017.6,3015.0,0.00342848]
[1763434402556,0.8065,3016.3,3015.0,0.00342848]
[1763434402761,1.96889965,3015.1,3013.5,0.842]
[1763434402964,0.53802,3014.7,3013.5,0.842]
[1763434403266,2.34360219,3014.6,3013.5,1.15523266]
[1763434403457,2.34360219,3014.6,3013.5,0.842]
[1763434403657,0.54304768,3014.4,3013.7,0.00497768]
[1763434403865,0.00497768,3014.4,3013.7,0.00497768]
[1763434405968,1.3384,3013.6,3012.1,0.842]
[1763434406162,0.8002,3013.6,3012.1,0.842]
[1763434406371,0.53829,3013.2,3012.1,0.842]
[1763434406671,0.53824,3013.4,3012.1,0.842]
[1763434406966,0.01712697,3012.8,3012.4,0.00331848]
[1763434407956,0.01712697,3012.6,3012.4,0.00331848]
[1763434409173,1.80109002,3014.5,3012.8,0.8289]
[1763434409470,0.84809866,3014.4,3012.8,0.8289]
[1763434409767,1.80109002,3014.9,3012.9,5.11869002]
[1763434410067,0.00497768,3014.1,3013.0,2.159]
[1763434410269,1.8060677,3014.1,3013.0,2.159]
[1763434410658,1.80109002,3013.1,3010.0,2.91112821]
[1763434410872,1.80109002,3012.7,3010.9,0.31103945]
[1763434411061,0.84824901,3013.0,3010.9,0.31103945]
[1763434411062,0.53835,3012.8,3011.2,0.8289]
[1763434411262,0.53837,3012.7,3011.2,0.8289]
[1763434411564,1.80109002,3012.6,3011.2,0.8289]
[1763434411769,0.00497768,3012.2,3011.6,0.00497768]
[1763434412066,0.0078706,3012.2,3011.6,0.00497768]
[1763434412567,0.53847,3012.1,3011.6,0.00497768]
[1763434412764,0.0078706,3012.2,3011.6,0.00497768]
[1763434413764,0.53853,3011.8,3011.6,0.00497768]
[1763434414169,0.53856,3011.6,3011.2,0.00407543]
[1763434414565,0.53854,3011.8,3011.2,0.00407543]
[1763434414768,0.53849,3012.1,3011.2,0.00407543]
[1763434414971,0.53851,3012.0,3011.2,0.00407543]
[1763434415969,0.53852,3011.9,3011.2,0.00407543]
[1763434416166,0.53853,3011.8,3011.2,0.00407543]
[1763434416573,0.53852,3011.9,3011.2,0.00407543]
[1763434417166,0.0078706,3012.2,3011.2,0.00407543]
[1763434417361,0.0078706,3012.2,3011.2,0.83297543]
[1763434417771,0.0078706,3012.2,3011.2,0.00407543]
[1763434417968,0.53848,3012.1,3011.2,0.00407543]
[1763434418168,0.5385,3012.0,3011.2,0.00407543]
[1763434418473,0.5463406,3012.2,3011.2,0.00407543]
[1763434418773,0.53848,3012.1,3011.2,0.00407543]
[1763434419171,0.0078706,3012.2,3011.2,0.83297543]
[1763434423070,0.5463306,3012.2,3011.2,0.83297543]
[1763434423264,0.0078706,3012.2,3011.2,0.83297543]
[1763434424381,0.5463306,3012.2,3011.2,0.83297543]
[1763434424773,0.0078706,3012.2,3011.2,0.83297543]
[1763434426170,0.0078706,3012.2,3012.1,0.8289]
[1763434427080,0.0078706,3012.2,3011.2,0.83297543]
[1763434429272,0.5463306,3012.2,3011.2,0.83297543]
[1763434429678,0.0078706,3012.2,3011.2,0.83297543]
[1763434429979,0.53851,3011.9,3011.2,0.83297543]
[1763434430276,0.0078706,3012.2,3011.2,0.83297543]
[1763434430675,0.53847,3012.1,3011.2,0.83297543]
[1763434430875,0.84681974,3012.0,3011.2,0.83297543]
[1763434431077,0.5463206,3012.2,3011.2,0.83297543]
[1763434431278,0.87280018,3012.1,3011.2,0.83297543]
[1763434431774,0.87280018,3012.0,3011.2,0.83297543]
[1763434431981,0.87280018,3011.9,3011.2,0.83297543]
[1763434432177,2.04393845,3011.8,3011.2,0.83297543]
[1763434432380,1.70970827,3011.6,3011.2,0.00407543]
[1763434432582,0.87280018,3011.5,3011.2,0.00407543]
[1763434432781,2.04393845,3011.4,3011.2,0.00407543]
[1763434432979,0.87280018,3011.3,3011.2,0.00407543]
[1763434434281,2.04393845,3011.3,3011.2,0.00407543]
[1763434435281,0.47379657,3011.3,3011.2,0.00407543]
[1763434436179,1.18918821,3011.6,3011.5,1.4004]
[1763434436380,1.18918821,3011.7,3011.6,1.4004]
[1763434436584,1.18918821,3011.9,3011.8,1.4004]
[1763434436775,1.18918821,3011.9,3011.4,0.8289]
[1763434440391,1.19314656,3012.1,3012.0,0.7702]
[1763434440585,1.20101716,3012.2,3011.4,0.8289]
[1763434440781,1.19314656,3012.1,3011.4,0.8289]
[1763434441085,1.19314656,3011.9,3011.4,0.8289]
[1763434441286,1.19314656,3011.9,3011.7,1.2425]
[1763434441591,1.19314656,3011.9,3011.4,0.8289]
[1763434441995,0.53855,3011.7,3011.2,0.00407543]
[1763434442182,1.19314656,3011.7,3011.2,0.00407543]
[1763434442793,1.19314656,3011.5,3011.2,0.00407543]
[1763434443193,4.69235893,3012.2,3011.8,1.2425]
[1763434443194,1.19285623,3012.0,3011.8,1.2425]
[1763434443490,0.0078706,3012.2,3012.1,1.2425]
[1763434444494,0.53847,3012.1,3011.2,0.00407543]
[1763434444791,0.53852,3011.9,3011.2,0.00407543]
[1763434445187,0.7551,3012.0,3011.2,0.00407543]
[1763434445393,0.53852,3011.9,3011.2,0.00407543]
[1763434445591,0.53853,3011.8,3011.2,0.00407543]
[1763434445985,0.7551,3012.0,3011.2,0.00407543]
[1763434446185,0.53855,3011.7,3011.2,0.00407543]
[1763434447290,3.09870219,3012.0,3011.2,0.00407543]
[1763434447995,0.53856,3011.7,3011.2,0.00407543]
[1763434448196,0.81462109,3011.6,3011.2,0.00407543]
[1763434448399,0.41560263,3011.5,3011.2,0.00407543]
[1763434448694,0.53858,3011.5,3011.2,0.00407543]
[1763434449193,1.79981,3011.3,3011.2,0.00407543]
[1763434452094,1.79999,3010.4,3010.0,0.01423952]
[1763434452495,0.5388,3010.3,3010.0,0.01423952]
[1763434452697,0.53881,3010.2,3010.0,0.01423952]
[1763434452897,1.2612,3010.1,3010.0,0.01423952]
[1763434453094,0.00497768,3010.5,3010.0,0.01757745]
[1763434453395,0.00497768,3010.5,3010.4,1.2425]
[1763434453705,0.00497768,3010.5,3010.0,0.01757745]
[1763434454104,0.00497768,3010.5,3010.4,1.2425]
[1763434455107,0.00497768,3010.5,3010.4,1.26054209]
[1763434455308,1.26617768,3010.5,3010.4,0.01804209]
[1763434455692,0.00497768,3010.5,3010.4,1.26054209]
[1763434455894,1.80493768,3010.5,3010.4,0.01804209]
[1763434456388,1.26617768,3010.5,3010.4,0.01804209]
[1763434457096,1.26617768,3010.5,3010.0,0.01757745]
[1763434457097,1.2612,3010.1,3010.0,0.01757745]
[1763434458403,0.86202046,3010.1,3010.0,0.01757745]
[1763434461296,1.40085046,3010.1,3010.0,0.01757745]
[1763434462600,0.86202046,3010.1,3010.0,0.01757745]
[1763434463006,0.53878,3010.4,3010.0,0.01757745]
[1763434463708,1.2925,3010.1,3010.0,0.01757745]
[1763434464104,1.83133,3010.1,3010.0,0.01757745]
[1763434466405,0.5389,3009.8,3008.7,0.0332375]
[1763434466604,0.7563,3009.6,3008.7,0.0332375]
[1763434466998,0.53897,3009.3,3008.7,0.0332375]
[1763434467301,0.53897,3009.3,3007.8,0.6797]
[1763434467302,0.53906,3008.9,3007.8,0.6797]
[1763434467506,0.00498612,3008.7,3008.6,1.1631]
[1763434468101,0.53883,3010.1,3008.8,1.1631]
[1763434468308,0.53885,3010.0,3008.8,1.1631]
[1763434469105,0.00498612,3009.7,3009.6,1.9141]
[1763434469299,0.00388506,3010.0,3009.9,1.1631]
[1763434469707,0.00388506,3010.0,3009.6,0.751]
[1763434469898,0.00388506,3010.0,3009.1,0.00498612]
[1763434470093,0.54273506,3010.0,3009.1,0.00498612]
[1763434470609,1.242,3009.2,3008.5,2.37825045]
[1763434470906,1.242,3009.2,3007.8,0.97410324]
[1763434471210,0.00498612,3009.9,3008.0,2.37825045]
[1763434471396,0.54386612,3009.9,3008.0,2.37825045]
[1763434471707,0.54386612,3009.9,3008.6,0.00498612]
[1763434471999,0.53889,3009.8,3008.6,0.00498612]
[1763434472403,0.53894,3009.5,3008.6,0.00498612]
[1763434472602,0.7656,3009.6,3008.6,0.00498612]
[1763434473303,0.54385612,3009.9,3008.6,0.00498612]
[1763434473610,0.00498612,3009.9,3008.6,0.00498612]
[1763434474111,1.30452,3009.6,3008.6,0.00498612]
[1763434475409,0.7656,3009.6,3008.6,0.00498612]
[1763434475612,0.00498612,3009.9,3008.6,0.00498612]
[1763434476413,0.00498612,3009.9,3008.6,0.33748612]
[1763434477210,0.00498612,3009.9,3009.8,1.1631]
[1763434477610,0.53858,3011.6,3009.9,10.4847]
[1763434477903,0.8043867,3011.3,3009.9,1.1631]
[1763434478399,0.53864,3011.2,3009.9,1.1631]
[1763434478605,0.00498612,3010.9,3010.2,0.75598612]
[1763434478804,0.00498612,3010.9,3010.2,0.76011065]
[1763434479511,1.242,3010.3,3010.2,0.00911065]
[1763434479816,0.2852,3010.8,3010.2,0.76011065]
[1763434480017,0.2852,3010.8,3010.2,0.00911065]
[1763434480220,0.82391,3010.8,3010.2,0.00911065]
[1763434480510,0.2852,3010.8,3010.2,0.00911065]
[1763434481416,0.00498612,3010.9,3010.2,0.76011065]
[1763434482116,1.242,3010.3,3010.2,0.00911065]
[1763434482316,0.00498612,3010.9,3010.2,0.76011065]
[1763434482918,0.82391,3010.8,3010.2,0.00911065]
[1763434483323,0.2852,3010.8,3010.2,0.00911065]
[1763434483522,0.2852,3010.8,3010.2,0.76011065]
[1763434483706,0.2852,3010.8,3010.2,0.00911065]
[1763434484217,0.53873,3010.7,3010.2,0.00911065]
[1763434485219,0.7656,3010.2,3009.3,2.37825045]
[1763434485512,0.7656,3010.2,3008.8,4.06159347]
[1763434485513,0.53878,3010.5,3009.2,2.37825045]
[1763434485817,0.53878,3010.4,3009.2,2.37825045]
[1763434486112,0.53876,3010.5,3009.1,2.37825045]
[1763434486311,0.53876,3010.5,3009.6,0.751]
[1763434487217,0.2852,3010.8,3009.6,0.751]
[1763434487620,0.53876,3010.6,3009.6,0.751]
[1763434488715,0.2852,3010.8,3009.6,0.751]
[1763434488916,0.53874,3010.6,3009.6,0.751]
[1763434489116,0.2852,3010.8,3009.6,0.751]
[1763434489325,0.00498612,3010.9,3009.6,0.751]
[1763434489527,1.36240057,3010.9,3009.6,0.751]
[1763434489821,0.54367612,3010.9,3009.6,0.751]